Cogmind - Beta 10.2 @@@ ROGUE MODE // 2021.12.06 @ 20:39:55 Player: ChromeKnight Result: Self-destructed Performance ------------- Evolutions (1) 500 Regions Visited (3) 600 Robots Destroyed (6) 30 Value Destroyed (106) 106 Prototype IDs (0) 0 Alien Tech Used (0) 0 Bonus (120) 120 TOTAL SCORE: 1356 Bonus ------- Follower Combat Kills 120 Cogmind --------- Core Integrity 390/400 Matter 300/300 Energy 137/140 System Corruption 0% Temperature Cool (3) Movement Hovering (52) Location -9/Materials Parts ------- > --- POWER (2) -------- Light Deuterium Engine > --- PROPULSION (3) --- Improved Hover Unit Improved Hover Unit Improved Hover Unit > --- UTILITY (2) ------ Large Storage Unit > --- WEAPON (2) ------- Autogun > --- INVENTORY (10) --- Improved Hover Unit Improved Hover Unit Improved Hover Unit Improved Weapon Shielding Improved Weapon Shielding Light Armor Plating Hacking Suite Hacking Suite Hacking Suite Hacking Suite Peak State ------------ > --- POWER ------------ Deuterium Engine Light Deuterium Engine > --- PROPULSION ------- Improved Hover Unit Improved Hover Unit Improved Hover Unit > --- UTILITY ---------- Large Storage Unit Large Storage Unit > --- WEAPON ----------- Light Assault Rifle Light Assault Rifle > --- INVENTORY -------- Light Ion Engine Hover Unit Hover Unit Improved Hover Unit Improved Hover Unit Improved Hover Unit Flight Unit Flight Unit Small Storage Unit Maneuvering Thrusters Utility Shielding Light Armor Plating [Rating: 17] Favorites ----------- Power Ion Engine Engine Ion Engine Propulsion Aluminum Leg Leg Aluminum Leg Hover Unit Improved Hover Unit Utility Large Storage Unit Storage Large Storage Unit Protection Light Armor Plating Weapon Light Assault Rifle Ballistic Gun Light Assault Rifle Build | -11 -10 -10 -9 ------- Run | Scr Mat Min Mat Slots Evolved 2 | . . . 2 Power 1 | . . . 1 Propulsion 1 | . . . 1 Utility . | . . . . Weapon . | . . . . Parts Attached 26 | 5 3 4 14 Power 5 | 1 . 1 3 Engine 5 | 1 . 1 3 Core . | . . . . Reactor . | . . . . Propulsion 8 | 2 . . 6 Treads . | . . . . Leg 4 | 2 . . 2 Wheel . | . . . . Hover 4 | . . . 4 Flight . | . . . . Utility 8 | 1 3 . 4 Device . | . . . . Storage 6 | 1 3 . 2 Processor . | . . . . Hackware . | . . . . Protection 2 | . . . 2 Artifact . | . . . . Weapon 5 | 1 . 3 1 Energy Gun . | . . . . Energy Cannon . | . . . . Ballistic Gun 5 | 1 . 3 1 Ballistic Cannon . | . . . . Launcher . | . . . . Special Weapon . | . . . . Impact Weapon . | . . . . Slashing Weapon . | . . . . Piercing Weapon . | . . . . Special Melee Weapon . | . . . . Unidentified Prototypes . | . . . . Parts Lost . | . . . . Power . | . . . . Propulsion . | . . . . Utility . | . . . . Weapon . | . . . . Highest Loss Streak . | . . . . Average Slot Usage (%) 87 | . 82 93 80 Engine 13 | . 14 14 12 Leg 24 | . 28 28 14 Hover 4 | . . . 17 Storage 24 | . 25 28 16 Ballistic Gun 18 | . 14 22 18 Naked Turns . | . . . . Heaviest Build 48 | 10 38 39 48 Greatest Support 30 | 20 20 20 30 Greatest Overweight (x) 1 | 1 1 1 1 Average Overweight (x) . | . . 1 . Largest Inventory Capacity 16 | 6 16 16 16 Average Capacity 14 | 5 12 16 12 Most Carried 16 | . 6 15 16 Average Carried 8 | . 2 10 11 Final Capacity 16 | 6 16 16 10 Final Carried 15 | . 6 15 10 Class Distribution -------------------- 93% | Mutant 6% | Scavenger-Mutant Dominant Class ---------------- Mutant | -10/Materials Mutant | -10/Mines Mutant | -9/Materials Resources | -11 -10 -10 -9 ----------- Run | Scr Mat Min Mat Matter Collected 541 | 234 67 70 170 Remotely . | . . . . Salvage Created 186 | . 108 37 41 Parts 14 | . 7 6 1 Haulers Intercepted 1 | . . . 1 Recyclers Shooed . | . . . . Parts Field Recycled . | . . . . Retrieved Matter . | . . . . Parts Self-Destructed . | . . . . Prevented . | . . . . Kills | -11 -10 -10 -9 ------- Run | Scr Mat Min Mat Combat Hostiles Destroyed 4 | . 2 2 . Guns 4 | . 2 2 . Classes Destroyed 4 | . 2 1 1 Hauler 1 | . . . 1 Watcher 1 | . 1 . . Swarmer 2 | . . 2 . Grunt 2 | . 2 . . Best Kill Streak 2 | . 2 2 1 Combat Bots Only 2 | . 2 2 . Max Kills in Single Turn 1 | . 1 1 1 Gunslinging . | . . . . Exploded . | . . . . Melee . | . . . . Uniques/NPCs Destroyed . | . . . . Combat | -11 -10 -10 -9 -------- Run | Scr Mat Min Mat Damage Taken 335 | . 89 196 50 Core 68 | . 21 37 10 Absorbed by Shields . | . . . . Core Remaining (%) 88 | 100 . 76 . Volleys Fired 53 | . 27 18 8 Largest 2 | . 1 2 2 Hottest 40 | . 20 40 40 Shots Fired 60 | . 27 24 9 Gun 60 | . 27 24 9 Cannon . | . . . . Launcher . | . . . . Special . | . . . . Kinetic 60 | . 27 24 9 Thermal . | . . . . Explosive . | . . . . Electromagnetic . | . . . . Robot Hit Streak 7 | . 7 5 2 Robot Miss Streak 4 | . 4 2 2 Penetration Max . | . . . . Secondary Targets . | . . . . Shots Hit Robots 37 | . 19 13 5 Core Hits 14 | . 9 4 1 Critical Hits 1 | . . 1 . Critical Kills . | . . . . Critical Parts Destroyed 1 | . . 1 . Melee Attacks . | . . . . Impact . | . . . . Slashing . | . . . . Piercing . | . . . . Sneak Attacks . | . . . . Combat Hostiles . | . . . . Follow-up Attacks . | . . . . Damage Inflicted 336 | . 160 110 66 Guns 336 | . 160 110 66 Cannons . | . . . . Explosions . | . . . . Melee . | . . . . Ramming . | . . . . Kinetic 336 | . 160 110 66 Thermal . | . . . . Explosive . | . . . . Electromagnetic . | . . . . Impact . | . . . . Slashing . | . . . . Piercing . | . . . . Highest Corruption . | . . . . Average Corruption . | . . . . Corruption Purged . | . . . . Overload Shots . | . . . . Overflow Damage . | . . . . Projectiles . | . . . . Explosions . | . . . . Melee . | . . . . Knockbacks . | . . . . Impact . | . . . . Kinetic . | . . . . Secondary . | . . . . Self-Inflicted Damage . | . . . . Shots . | . . . . Rammed . | . . . . Targets Rammed . | . . . . Kicked . | . . . . Crushed . | . . . . Highest Temperature 8 | . 6 . 8 Average Temperature 5 | . 6 . 5 Received Heat Transfer 72 | . 48 . 24 Siege Activations . | . . . . Robots Corrupted . | . . . . Combat Hostiles . | . . . . Parts Fried . | . . . . Impact Corruptions . | . . . . Robots Melted . | . . . . Combat Hostiles . | . . . . Parts Melted . | . . . . Heat Transferred . | . . . . Parts Sabotaged . | . . . . Parts Stolen . | . . . . Parts Stripped . | . . . . Power Chain Reactions . | . . . . Missiles Intercepted . | . . . . Alert | -11 -10 -10 -9 ------- Run | Scr Mat Min Mat Peak Influence 224 | . 102 149 224 Initial 39 | . . 39 26 Average 68 | . 42 58 131 Maximum Alert Level 1 | . . . 1 Low Security (%) 97 | 100 100 100 90 Level 1 2 | . . . 9 Level 2 . | . . . . Level 3 . | . . . . Level 4 . | . . . . Level 5 . | . . . . High Security . | . . . . Max Security . | . . . . Squads Dispatched 5 | . 2 . 3 Investigation 1 | . . . 1 Extermination . | . . . . Reinforcement 4 | . 2 . 2 Assault . | . . . . Garrison . | . . . . Intercept . | . . . . Construction Impeded . | . . . . Haulers Reinforced . | . . . . Stealth | -11 -10 -10 -9 --------- Run | Scr Mat Min Mat Distress Signals 3 | . 1 . 2 Communications Jammed . | . . . . Distress Signals . | . . . . Times Spotted 38 | . 9 9 20 Peak Tracking Total 8 | . 3 3 8 Tactical Retreats 3 | . . 3 . Traps | -11 -10 -10 -9 ------- Run | Scr Mat Min Mat Traps Triggered 1 | . . . 1 Indirectly . | . . . . Trap Hack Attempts . | . . . . Triggered . | . . . . Disarmed . | . . . . Reprogrammed . | . . . . Reused . | . . . . Traps Extracted . | . . . . Installed . | . . . . Triggered . | . . . . Machines | -11 -10 -10 -9 ---------- Run | Scr Mat Min Mat Machines Disabled . | . . . . Max in Single Turn . | . . . . Machines Sabotaged . | . . . . Garrisons Compromised . | . . . . Overloaded Fab Kills . | . . . . Fab Network Shutdowns . | . . . . Hacking | -11 -10 -10 -9 --------- Run | Scr Mat Min Mat Machines Accessed 3 | . 1 1 1 Terminals 2 | . 1 . 1 Fabricators . | . . . . Repair Stations . | . . . . Recycling Units . | . . . . Scanalyzers . | . . . . Garrison Access . | . . . . Total Hacks 3 | . 1 1 1 Successful 2 | . . 1 1 Failed 1 | . 1 . . Catastrophic . | . . . . Database Lockouts . | . . . . Manual 2 | . 1 . 1 Terminals 2 | . 1 . 1 Fabricators . | . . . . Repair Stations . | . . . . Recycling Units . | . . . . Scanalyzers . | . . . . Garrison Access . | . . . . Terminal Hacks 1 | . . 1 . Open Door 1 | . . 1 . Fabricator Hacks . | . . . . Repair Station Hacks . | . . . . Recycling Unit Hacks . | . . . . Scanalyzer . | . . . . Garrison Access Hacks . | . . . . Unauthorized Hacks 1 | . . . 1 Terminals 1 | . . . 1 Track 1 | . . . 1 Fabricators . | . . . . Repair Stations . | . . . . Recycling Units . | . . . . Scanalyzers . | . . . . Garrison Access . | . . . . Data Cores Recovered . | . . . . Used . | . . . . Hacking Detections . | . . . . Full Trace Events . | . . . . Feedback Events . | . . . . Feedback Blocked . | . . . . Robot Schematics Acquired . | . . . . Robots Built . | . . . . Matter . | . . . . Time . | . . . . Total Robot Build Rating . | . . . . Part Schematics Acquired . | . . . . Parts Built . | . . . . Matter . | . . . . Time . | . . . . Total Part Build Rating . | . . . . Parts Repaired . | . . . . Time . | . . . . Parts Recycled . | . . . . Recycled Matter . | . . . . Retrieved Matter . | . . . . Retrieved Components . | . . . . Parts Scanalyzed . | . . . . Part Schematics Acquired . | . . . . Parts Damaged . | . . . . Bothacking | -11 -10 -10 -9 ------------ Run | Scr Mat Min Mat Used RIF Installer . | . . . . Robots Hacked . | . . . . Non-combat . | . . . . Combat . | . . . . Robot Hacks Applied . | . . . . Relay Couplers Released . | . . . . Robots Rewired . | . . . . Allies Hacked . | . . . . Hacks Repelled . | . . . . Allies | -11 -10 -10 -9 -------- Run | Scr Mat Min Mat Total Allies 5 | . . 5 . Largest Group 5 | . . 5 4 Highest-Rated Group 85 | . . 85 77 Highest-Rated Ally 31 | . . 31 31 Total Orders . | . . . . Ally Attacks 42 | . . 9 33 Total Damage 467 | . . 68 399 Kills 9 | . . 3 6 Allies Corrupted . | . . . . Allies Melted . | . . . . Intel | -11 -10 -10 -9 ------- Run | Scr Mat Min Mat Robot Analysis Total . | . . . . Derelict Logs Recovered 1 | . . 1 . Drone Launches . | . . . . Drone Recoveries . | . . . . Exploration | -11 -10 -10 -9 ------------- Run | Scr Mat Min Mat Turns Passed 1269 | 47 331 607 284 Spaces Moved 883 | 35 201 367 280 Core 4 | 4 . . . Treads . | . . . . Legs 668 | 31 201 367 69 Wheels . | . . . . Hover 211 | . . . 211 Flight . | . . . . Fastest Speed 50 | 50 120 150 52 Average Speed 121 | 116 135 150 76 Slowest Speed 150 | 120 150 150 150 Overloaded Moves . | . . . . Propulsion Burnouts . | . . . . Robots Hopped . | . . . . Cave-ins Triggered . | . . . . Exploration Rate (%) 39 | 3 32 92 29 Regions Visited 3 Branch Regions 1 Pre-discovered Areas . | . . . . Known Exits Taken . | . . . . Unknown Exits Taken 3 | 1 1 1 . Scrap Searched 1 | . . 1 . Spaces Dug . | . . . . Terrain Destroyed . | . . . . Melee . | . . . . Projectile . | . . . . AOE . | . . . . Terrain Rammed . | . . . . Walls Destroyed . | . . . . Machines Disabled . | . . . . Actions | -11 -10 -10 -9 --------- Run | Scr Mat Min Mat Total 1030 | 39 238 402 351 Wait 19 | . . 8 11 Move 880 | 34 200 366 280 Hop . | . . . . Pick Up 25 | . 6 6 13 Fast Attach 10 | 5 1 1 3 Attach 5 | . . . 5 Detach 2 | . . . 2 Swap 11 | . 2 3 6 Drop 25 | . 2 . 23 Fire 53 | . 27 18 8 Melee . | . . . . Ram . | . . . . Kick . | . . . . Crush . | . . . . Escape Stasis . | . . . . Rewire . | . . . . Trap . | . . . . Miscellaneous . | . . . . Route ------- -11/Scrapyard -10/Materials -10/Mines (discovered 2 exits: *Mat x2) -9/Materials History --------- Turn | Location | Event 23 | -11/Scrapyard | Discovered new exit (range 15) 48 | -11/Scrapyard | Entered Materials 301 | -10/Materials | Build established: Mutant 326 | -10/Materials | Discovered new exit (range 16) 379 | -10/Materials | Entered Mines 383 | -10/Mines | Met a Derelict who couldn't figure out how to use a Trap Extractor 414 | -10/Mines | Met a Derelict bent on vengeance 603 | -10/Mines | Discovered new exit (range 7) 825 | -10/Mines | Assisted by bots powering up and referring to "LRC-V3" 972 | -10/Mines | Discovered new exit (range 2) 986 | -10/Mines | Entered Materials 986 | -9/Materials | Accompanied by 4 allies 986 | -9/Materials | Evolved 2 slots: Power x1, Propulsion x1 991 | -9/Materials | Led the pair of lost Derelicts to an unsafe place 1270 | -9/Materials | Self-destructed Last Messages --------------- 01215_ Triggered Blade Trap. 01215_ Massive razor-sharp blades shoot up from within the floor. 01215_ Lgt. Deuterium Engine severed. 01215_ Imp. Hover Unit severed. 01216_ Acquired Imp. Hover Unit. 01219_ Acquired Lgt. Deuterium Engine. 01220_ Acquired 9 matter. 01235_ A-02 Transporter destroyed. 01238_ Acquired 35 matter. 01244_ O-16 Technician: "IFF HANDSHAKE FAILED. SECURING TERMINAL." 01251_ O-16 Technician uses terminal to summon reinforcements. 01251_ ALERT: Hostiles spotted, dispatching reinforcements to Terminal M001. 01251_ O-16 Technician locks terminal. 01254_ Acquired 4 matter. 01256_ K-01 Serf collects debris. 01257_ U-05 Engineer lays Concrete. 01261_ K-01 Serf collects debris. 01268_ C-30 ARC bursts open, deploying its payload. 01268_ S-10 Pest unfolds itself. Map ----- +----------------------------------------------------+ | ?????????????????????????????????????????????????? | | ??????????????????????????????????########???????? | | ??????????????????????????????????# #???????? | | ??????????????????????????????????# """ #???????? | | ??????????????????????????????????# """ #???????? | | ??????????????????????????????????# """ #???????? | | ??????????????????????????????????# #???????? | | ??????????????????????????????????# #???? ? | | ???????????????????????##############+####??"" ? | | ????????????????????? ### """ | | ????????????????????? + """ | | ????????????????????? ### | | ?????????????????????? #????"" | | ??????????????????????""" #?????? | | ???????????????????????"" #???????? | | ???????????????????????"" /! #?????????? | | ?????????????????????? !! ]#######+### | | ?????????????????????? ! "T"=][%*[ | | ?????????????????????? #######+####] ## | | ???????????????????????? #???? ?+ #? | | ???????????????????????? #??# "" #### #? | | ?????????????????????????#### #??# """#??# #? | | ????????????????????????????# #??# S"#??# #? | | ????????????????????????????# #??# #??# ## | | ????????????????" """g####### ############### | | ????????????????" """ g @ ss | | ????????????? ####### ############### | | ?????????????###????????????# #?????????????## | | ????????????????????????????# #??????????????# | | ????????????????????????????# #??????????????# | | ????????????????????????????# #??????????????# | | ????????????????????????????#%#??????????????# | | ????????????????????????????# #??????????????# ! | | ????????????????????????????# ??????????????# ! | | ????????????????????????????? ??????????????# ! | | ????????????????????????????? ??????????????# ### | | ????????????????????????????? ??????????????#+??? | | ?????????????????????????????##??????????????????? | | ?????????????????????????????????????????????????? | | ?????????????????????????????????????????????????? | | ?????????????????????????????????????????????????? | | ?????????????????????????????????????????????????? | | ?????????????????????????????????????????????????? | | ?????????????????????????????????????????????????? | | ?????????????????????????????????????????????????? | | ?????????????????????????????????????????????????? | | ?????????????????????????????????????????????????? | | ?????????????????????????????????????????????????? | | ?????????????????????????????????????????????????? | | ?????????????????????????????????????????????????? | +----------------------------------------------------+ Best States ------------- Heat Dissipation 28 Energy Generation 23 Energy Capacity 315 Matter Stores 300 Matter Capacity 300 Sight Range 16 Terrain Scan Density 10 Armor Coverage 150 Weapon Shielding 66 Evasion (%) 54 Item Schematics ----------------- None Robot Schematics ------------------ None Fabricated ------------ Nothing Alien Tech Used ----------------- None Achievements -------------- None Challenges ------------ None Game ------ Seed ForceSiegeTorch Manual? 0 Play Time 00:08:58 Cumulative 241.3 hours Start 2021.12.06 @ 20:31:05 End 2021.12.06 @ 20:39:55 Sessions 1 Manual Loads 0 Difficulty Rogue Special Mode None Game No. 457 Rogue 302 Adventurer 148 Explorer 7 Win Type - Total 10 Types 8/0/1/1/0/0/0/0/0 Lore% 75 Gallery% 87 Achievement% 65 Wizard Run 0 Options --------- ASCII 0 Keyboard 0 Movement Numpad Keybinds 0 Fullscreen 1 Font 18/SmallcapsGlow Map View 76x50 Tactical HUD 1 Map Filters NONE Filters NONE Steam 1 RUN: 83d35c97-e740-4ab6-87b9-72a2f5a1dd50